fUSD/lending_fUSD_20241102
["ID","MTS","AMOUNT","RATE_DAILY","PERIOD"]
[341168209,1730507459554,-500.0,0.00049315,120]
[341168210,1730507459563,-500.0,0.00049315,120]
[341168211,1730507459574,-500.0,0.00049315,120]
[341168212,1730507459585,-500.0,0.00049315,120]
[341168213,1730507459595,-500.0,0.00049315,120]
[341168214,1730507459604,-500.0,0.00049315,120]
[341168215,1730507459614,-500.0,0.00049315,120]
[341168216,1730507459624,-500.0,0.00049315,120]
[341168217,1730507459638,-228.43018273,0.00049315,120]
[341168218,1730507459648,-500.0,0.00049315,120]
[341168219,1730507459658,-679.72,0.00049315,7]
[341168220,1730507459669,-500.0,0.00049315,2]
[341168221,1730507459679,-697.18,0.00049315,120]
[341168222,1730507459688,-500.0,0.00049315,120]
[341168223,1730507459698,-518.41,0.00049315,120]
[341168224,1730507459710,-500.0,0.00049315,120]
[341168225,1730507459721,-328.37,0.00049315,120]
[341168226,1730507459732,-571.22,0.00049315,30]
[341168227,1730507459742,-571.22,0.00049315,30]
[341168228,1730507459751,-571.22,0.00049315,30]
[341168229,1730507459762,-571.22,0.00049315,30]
[341168230,1730507459772,-571.22,0.00049315,30]
[341168231,1730507459783,-571.22,0.00049315,30]
[341168232,1730507459793,-571.22,0.00049315,30]
[341168233,1730507459804,-571.22,0.00049315,30]
[341168234,1730507459816,-571.22,0.00049315,30]
[341168235,1730507459826,-571.22,0.00049315,30]
[341168236,1730507459836,-571.22,0.00049315,120]
[341168237,1730507459847,-700.0,0.00049315,26]
[341168238,1730507459857,-1500.0,0.00049315,120]
[341168239,1730507459866,-971.71,0.00049405,2]
[341168240,1730507459875,-233.61426626,0.0004945,120]
[341168241,1730507459884,-1000.0,0.00049479,120]
[341168242,1730507459893,-1268.63318,0.00049488,30]
[341168243,1730507459902,-150.110205,0.00049498,120]
[341168244,1730507459911,-15000.0,0.000495,120]
[341168245,1730507459920,-150.0,0.000495,103]
[341168246,1730507459929,-636781.66,0.000495,7]
[341168247,1730507459938,-81545.64,0.000495,7]
[341168248,1730507459947,-846.0,0.000495,7]
[341168249,1730507459957,-999.0,0.00049533,120]
[341168250,1730507459965,-191.55101432,0.0004956,120]
[341168251,1730507459975,-2000.0,0.00049589,2]
[341168252,1730507459984,-2000.0,0.00049589,2]
[341168253,1730507459994,-2500.0,0.00049589,7]
[341168254,1730507460003,-500.0,0.00049589,120]
[341168255,1730507460012,-679.72,0.00049589,7]
[341168256,1730507460021,-500.0,0.00049589,2]
[341168257,1730507460032,-697.18,0.00049589,120]
[341168258,1730507460041,-500.0,0.00049589,120]
[341168259,1730507460051,-518.41,0.00049589,120]
[341168260,1730507460061,-500.0,0.00049589,120]
[341168261,1730507460070,-571.22,0.00049589,120]
[341168262,1730507460080,-19144.01109243,0.000496,120]
[341168263,1730507460090,-500.0,0.00049608,120]
[341168264,1730507460099,-166.89,0.00049675,2]
[341168265,1730507460109,-1268.63318,0.00049688,30]
[341168266,1730507460118,-839.72,0.000497,60]
[341168267,1730507460130,-150.0,0.00049748,2]
[341168268,1730507460140,-15782.75808584,0.000498,30]
[341168269,1730507460150,-2000.0,0.00049863,2]
[341168270,1730507460161,-2000.0,0.00049863,2]
[341168271,1730507460171,-2500.0,0.00049863,7]
[341168272,1730507460181,-500.0,0.00049863,120]
[341168273,1730507460191,-679.72,0.00049863,7]
[341168274,1730507460202,-500.0,0.00049863,2]
[341168275,1730507460212,-697.18,0.00049863,120]
[341168276,1730507460223,-500.0,0.00049863,120]
[341168277,1730507460233,-518.41,0.00049863,120]
[341168278,1730507460242,-500.0,0.00049863,120]
[341168279,1730507460253,-571.22,0.00049863,120]
[341168280,1730507460263,-2054.63837985,0.000499,2]
[341168281,1730507460274,-156.30874463,0.000499,120]
[341168282,1730507460284,-156.30874463,0.000499,120]
[341168283,1730507460293,-156.30874463,0.000499,120]
[341168284,1730507460303,-156.30874463,0.000499,120]
[341168285,1730507460312,-156.30874463,0.000499,120]
[341168286,1730507460321,-156.30874463,0.000499,120]
[341168287,1730507460330,-156.30874463,0.000499,120]
[341168288,1730507460341,-156.30874463,0.000499,120]
[341168289,1730507460351,-156.30874463,0.000499,120]
[341168290,1730507460360,-156.3,0.000499,120]
[341168291,1730507460371,-736.27735109,0.000499,120]
[341168292,1730507460380,-736.27735109,0.000499,120]
[341168293,1730507460391,-736.27735109,0.000499,120]
[341168294,1730507460400,-736.27735109,0.000499,120]
[341168295,1730507460410,-736.27735109,0.000499,120]
[341168296,1730507460420,-736.27735109,0.000499,120]
[341168297,1730507460435,-736.27735109,0.000499,120]
[341168298,1730507460446,-736.27735109,0.000499,120]
[341168299,1730507460455,-736.27735109,0.000499,120]
[341168300,1730507460464,-736.27735109,0.000499,120]
[341168301,1730507460473,-736.27735109,0.000499,120]
[341168302,1730507460482,-736.27735109,0.000499,120]
[341168303,1730507460491,-736.27735109,0.000499,120]
[341168304,1730507460501,-736.27735109,0.000499,120]
[341168305,1730507460510,-736.27735109,0.000499,120]
[341168306,1730507460519,-736.27735109,0.000499,120]
[341168307,1730507460529,-736.27735109,0.000499,120]
[341168308,1730507460539,-736.27735109,0.000499,120]
[341168309,1730507460549,-736.27735109,0.000499,120]
[341168310,1730507460558,-736.27,0.000499,120]
[341168311,1730507460567,-660.08048157,0.000499,120]
[341168312,1730507460576,-660.08048157,0.000499,120]
[341168313,1730507460586,-660.08048157,0.000499,120]
[341168314,1730507460595,-660.08048157,0.000499,120]
[341168315,1730507460605,-660.08048157,0.000499,120]
[341168316,1730507460613,-660.08048157,0.000499,120]
[341168317,1730507460623,-660.08048157,0.000499,120]
[341168318,1730507460634,-660.08048157,0.000499,120]
[341168319,1730507460645,-660.08048157,0.000499,120]
[341168320,1730507460656,-660.08048157,0.000499,120]
[341168321,1730507460666,-660.08048157,0.000499,120]
[341168322,1730507460676,-660.08048157,0.000499,120]
[341168323,1730507460687,-660.08048157,0.000499,120]
[341168324,1730507460698,-660.08048157,0.000499,120]
[341168325,1730507460708,-660.08048157,0.000499,120]
[341168326,1730507460718,-660.08048157,0.000499,120]
[341168327,1730507460728,-660.08048157,0.000499,120]
[341168328,1730507460737,-660.08048157,0.000499,120]
[341168329,1730507460746,-660.08048157,0.000499,120]
[341168330,1730507460756,-660.08,0.000499,120]
[341168331,1730507460767,-11541.0,0.000499,5]
[341168332,1730507460777,-500.0,0.000499,18]
[341168333,1730507460787,-205.79465,0.000499,120]
[341168334,1730507460796,-205.794649,0.000499,120]
[341168335,1730507460805,-5830.5705035,0.00049956,2]
[341168336,1730507460815,-10713.5264923,0.00049956,2]
[341168337,1730507460824,-3029.2755016,0.00049956,2]
[341168338,1730507460833,-1456.4965604,0.00049956,2]
[341168339,1730507460843,-2060.4133206,0.00049956,2]
[341168340,1730507460853,-6201.4552936,0.00049966,2]
[341168341,1730507460862,-11412.5036826,0.00049966,2]
[341168342,1730507460872,-3221.9688595,0.00049966,2]
[341168343,1730507460881,-1546.7547465,0.00049966,2]
[341168344,1730507460891,-2188.0958527,0.00049966,2]
[341168345,1730507460900,-242120.0,0.0004999,120]
[341168346,1730507460909,-600.0,0.00049998,60]
[341168347,1730507460918,-173.20271335,0.00049999,120]
[341168348,1730507460928,-490.39286967,0.00049999,120]
[341168349,1730507460937,-192.81215292,0.00049999,120]
[341168350,1730507460946,-50000.0,0.0005,50]
[341168351,1730507460955,-760.33209028,0.0005,3]
[341168352,1730507460964,-1218.7867292,0.0005,5]
[341168353,1730507460973,-912.0,0.0005,20]
[341168354,1730507460982,-150.0,0.0005,120]
[341168355,1730507460991,-1348.3210829,0.0005,30]
[341168356,1730507461087,-197.58740947,0.0005,120]
[341168357,1730507461098,-1107.0771299,0.0005,120]
[341168358,1730507461107,-794.48351808,0.0005,30]
[341168359,1730507461117,-992.39106492,0.0005,120]
[341168360,1730507461126,-7204.90741525,0.0005,14]
[341168361,1730507461135,-500.0,0.0005,30]
[341168362,1730507461144,-10000.0,0.0005,120]
[341168363,1730507461153,-1435648.60069832,0.0005,30]
[341168364,1730507461162,-1460.0,0.0005,120]
[341168365,1730507461172,-1678.26,0.0005,120]
[341168366,1730507461181,-4000.0,0.0005,120]
[341168367,1730507461190,-234444.53430249,0.0005,30]
[341168368,1730507461200,-50000.000999,0.0005,7]
[341168369,1730507461209,-900.0,0.0005,51]
[341168370,1730507461219,-12163.39688961,0.0005,120]
[341168371,1730507461228,-200.0,0.0005,120]
[341168372,1730507461237,-20000.0,0.0005,120]
[341168373,1730507461247,-101782.0714023,0.0005,120]
[341168374,1730507461257,-1454.95505844,0.0005,5]
[341168375,1730507461267,-10000.0,0.0005,120]
[341168376,1730507461277,-150.0,0.0005,120]
[341168377,1730507461286,-5014.14,0.0005,120]
[341168378,1730507461295,-5502.78548226,0.0005,7]
[341168379,1730507461305,-15000.0,0.0005,120]
[341168380,1730507461314,-150.0,0.0005,2]
[341168381,1730507461323,-200.0,0.0005,2]
[341168382,1730507461332,-16267.0,0.0005,30]
[341168383,1730507461341,-200.0,0.0005,2]
[341168384,1730507461350,-150.0,0.0005,2]
[341168385,1730507461359,-200.0,0.0005,2]
[341168386,1730507461369,-200.0,0.0005,104]
[341168387,1730507461378,-200.0,0.0005,2]
[341168388,1730507461387,-4158.13654884,0.0005,30]
[341168389,1730507461396,-7025.0,0.0005,17]
[341168390,1730507461406,-200.0,0.0005,2]
[341168391,1730507461418,-1572.77531131,0.0005,14]
[341168392,1730507461432,-248.29106952,0.0005,2]
[341168393,1730507461441,-239.57464171,0.0005,2]
[341168394,1730507461451,-1000.0,0.00050027,120]
[341168395,1730507461461,-1268.63318,0.00050088,30]
[341168396,1730507461472,-157.78,0.00050098,2]
[341168397,1730507461483,-5800.0,0.00050134,14]
[341168398,1730507461494,-500.0,0.00050136,120]
[341168399,1730507461506,-679.72,0.00050136,7]
[341168400,1730507461517,-500.0,0.00050136,2]
[341168401,1730507461526,-697.18,0.00050136,120]
[341168402,1730507461537,-500.0,0.00050136,120]
[341168403,1730507461548,-518.41,0.00050136,120]
[341168404,1730507461558,-500.0,0.00050136,120]
[341168405,1730507461568,-2000.0,0.00050137,2]
[341168406,1730507461578,-2000.0,0.00050137,2]
[341168407,1730507461588,-2500.0,0.00050137,7]
[341168408,1730507461600,-5800.0,0.00050143,14]
[341168409,1730507461612,-30000.00000099,0.0005015,120]
[341168410,1730507461624,-2000.0,0.00050218,2]
[341168411,1730507461634,-999.0,0.00050218,120]
[341168412,1730507461644,-1268.63318,0.00050288,30]
[341168413,1730507461655,-152.77,0.000504,48]
[341168414,1730507461664,-152.77,0.000504,48]
[341168415,1730507461674,-152.77,0.000504,48]
[341168416,1730507461683,-152.77,0.000504,48]
[341168417,1730507461692,-152.77,0.000504,48]
[341168418,1730507461702,-152.77,0.000504,48]
[341168419,1730507461711,-152.77,0.000504,48]
[341168420,1730507461720,-152.77,0.000504,48]
[341168421,1730507461730,-242.88,0.0005041,120]
[341168422,1730507461739,-679.72,0.0005041,7]
[341168423,1730507461748,-500.0,0.0005041,2]
[341168424,1730507461757,-697.18,0.0005041,120]
[341168425,1730507461766,-500.0,0.0005041,120]
[341168426,1730507461775,-518.41,0.0005041,120]
[341168427,1730507461784,-500.0,0.0005041,120]
[341168428,1730507461794,-2000.0,0.00050411,2]
[341168429,1730507461803,-2000.0,0.00050411,2]
[341168430,1730507461812,-2500.0,0.00050411,7]
[341168431,1730507461821,-1185.1765,0.00050435,2]
[341168432,1730507461830,-167.11,0.00050476,2]
[341168433,1730507461839,-1268.63318,0.00050488,30]
[341168434,1730507461849,-150.110205,0.00050498,120]
[341168435,1730507461859,-1000.0,0.00050499,120]
[341168436,1730507461868,-1000.0,0.00050575,120]
[341168437,1730507461877,-397.0,0.000506,39]
[341168438,1730507461887,-308.0,0.000506,39]
[341168439,1730507461896,-228.0,0.0005068,30]
[341168440,1730507461905,-679.72,0.00050684,7]
[341168441,1730507461914,-500.0,0.00050684,2]
[341168442,1730507461923,-697.18,0.00050684,120]
[341168443,1730507461933,-500.0,0.00050684,120]
[341168444,1730507461942,-518.41,0.00050684,120]
[341168445,1730507461952,-500.0,0.00050684,120]
[341168446,1730507461961,-2000.0,0.00050685,2]
[341168447,1730507461970,-2000.0,0.00050685,2]
[341168448,1730507461980,-2500.0,0.00050685,7]
[341168449,1730507461989,-1268.63318,0.00050688,30]
[341168450,1730507461998,-5640.86,0.000507,7]
[341168451,1730507462007,-150.0,0.00050829,2]
[341168452,1730507462017,-156676.65168991,0.0005088,30]
[341168453,1730507462026,-6139.24537647,0.000509,2]
[341168454,1730507462035,-250000.0,0.000509,30]
[341168455,1730507462045,-999.0,0.00050903,120]
[341168456,1730507462054,-679.72,0.00050958,7]
[341168457,1730507462063,-500.0,0.00050958,2]
[341168458,1730507462073,-697.18,0.00050958,120]
[341168459,1730507462082,-500.0,0.00050958,120]
[341168460,1730507462091,-518.41,0.00050958,120]
[341168461,1730507462102,-240.67,0.00050958,120]
[341168462,1730507462111,-50000.0,0.00051,51]
[341168463,1730507462120,-300.0,0.00051,120]
[341168464,1730507462128,-186.02,0.00051,120]
[341168465,1730507462138,-50000.0,0.00051,35]
[341168466,1730507462147,-812.59144032,0.00051,30]
[341168467,1730507462156,-472.70329039,0.00051,10]
[341168468,1730507462165,-50000.0,0.00051,45]
[341168469,1730507462175,-900.0,0.00051,52]
[341168470,1730507462184,-7499.99999999,0.00051,120]
[341168471,1730507462193,-20000.0,0.00051,120]
[341168472,1730507462202,-2110.0,0.00051,30]
[341168473,1730507462212,-839.72,0.00051,60]
[341168474,1730507462221,-839.72,0.00051,60]
[341168475,1730507462232,-939.0,0.00051,30]
[341168476,1730507462242,-1000.0,0.00051104,120]
[341168477,1730507462252,-1000.0,0.00051123,120]
[341168478,1730507462262,-679.72,0.00051232,7]
[341168479,1730507462274,-500.0,0.00051232,2]
[341168480,1730507462285,-697.18,0.00051232,120]
[341168481,1730507462296,-500.0,0.00051232,120]
[341168482,1730507462306,-518.41,0.00051232,120]
[341168483,1730507462317,-2000.0,0.00051233,60]
[341168484,1730507462328,-500.0,0.00051241,120]
[341168485,1730507462338,-627.95,0.0005137,60]
[341168486,1730507462349,-150.11011,0.00051498,120]
[341168487,1730507462359,-20000.0,0.000515,30]
[341168488,1730507462369,-15000.0,0.000515,120]
[341168489,1730507462379,-500.0,0.000515,120]
[341168490,1730507462388,-500.0,0.000515,120]
[341168491,1730507462397,-500.0,0.000515,120]
[341168492,1730507462406,-500.0,0.000515,120]
[341168493,1730507462416,-500.0,0.000515,120]
[341168494,1730507462428,-500.0,0.000515,120]
[341168495,1730507462438,-500.0,0.000515,120]
[341168496,1730507462447,-500.0,0.000515,120]
[341168497,1730507462456,-500.0,0.000515,120]
[341168498,1730507462465,-500.0,0.000515,120]
[341168499,1730507462474,-1000.0,0.00051506,120]
[341168500,1730507462483,-679.72,0.00051506,7]
[341168501,1730507462493,-500.0,0.00051506,2]
[341168502,1730507462502,-697.18,0.00051506,120]
[341168503,1730507462511,-500.0,0.00051506,120]
[341168504,1730507462521,-518.41,0.00051506,120]
[341168505,1730507462530,-2000.0,0.00051507,60]
[341168506,1730507462540,-150.0,0.00051534,30]
[341168507,1730507462549,-152.0,0.00051553,4]
[341168508,1730507462558,-999.0,0.00051588,120]
[341168509,1730507462567,-971.71,0.00051669,2]
[341168510,1730507462576,-1000.0,0.00051671,120]
[341168511,1730507462585,-15000.0,0.0005175,120]
[341168512,1730507462594,-679.72,0.0005178,7]
[341168513,1730507462603,-500.0,0.0005178,2]
[341168514,1730507462613,-697.18,0.0005178,120]
[341168515,1730507462622,-500.0,0.0005178,120]
[341168516,1730507462631,-518.41,0.0005178,120]
[341168517,1730507462640,-2000.0,0.00051781,60]
[341168518,1730507462649,-19804.51996,0.000518,30]
[341168519,1730507462658,-26406.026614,0.000518,30]
[341168520,1730507462667,-33007.533267,0.000518,30]
[341168521,1730507462676,-839.72,0.000518,60]
[341168522,1730507462686,-150.0,0.00051911,2]
[341168523,1730507462695,-5000.00000099,0.00051999,7]
[341168524,1730507462704,-50000.0,0.00052,52]
[341168525,1730507462713,-10000.0,0.00052,120]
[341168526,1730507462722,-900.0,0.00052,53]
[341168527,1730507462732,-300.0,0.00052,120]
[341168528,1730507462741,-50000.0,0.00052,36]
[341168529,1730507462751,-8123.77148054,0.00052,120]
[341168530,1730507462760,-1000.0,0.00052054,120]
[341168531,1730507462770,-1000.0,0.00052054,120]
[341168532,1730507462779,-679.72,0.00052054,7]
[341168533,1730507462788,-6346.79,0.00052054,120]
[341168534,1730507462798,-6346.79,0.00052054,120]
[341168535,1730507462807,-6346.79,0.00052054,120]
[341168536,1730507462817,-6346.79,0.00052054,120]
[341168537,1730507462826,-6346.79,0.00052054,120]
[341168538,1730507462836,-6346.79,0.00052054,120]
[341168539,1730507462848,-6346.79,0.00052054,120]
[341168540,1730507462857,-6346.79,0.00052054,120]
[341168541,1730507462867,-6346.79,0.00052054,120]
[341168542,1730507462876,-6346.79,0.00052054,120]
[341168543,1730507462885,-6346.79,0.00052054,120]
[341168544,1730507462895,-6346.79,0.00052054,120]
[341168545,1730507462903,-6346.79,0.00052054,120]
[341168546,1730507462912,-6346.79,0.00052054,120]
[341168547,1730507462922,-6346.79,0.00052054,120]
[341168548,1730507462931,-6346.79,0.00052054,120]
[341168549,1730507462940,-6346.79,0.00052054,120]
[341168550,1730507462948,-6346.79,0.00052054,120]
[341168551,1730507462958,-6346.79,0.00052054,120]
[341168552,1730507462967,-6346.79,0.00052054,120]
[341168553,1730507462975,-6346.79,0.00052054,120]
[341168554,1730507462984,-500.0,0.00052054,2]
[341168555,1730507462993,-697.18,0.00052054,120]
[341168556,1730507463003,-500.0,0.00052054,120]
[341168557,1730507463012,-622.87,0.00052054,120]
[341168558,1730507463021,-622.87,0.00052054,120]
[341168559,1730507463031,-622.87,0.00052054,120]
[341168560,1730507463041,-622.87,0.00052054,120]
[341168561,1730507463051,-622.87,0.00052054,120]
[341168562,1730507463060,-622.87,0.00052054,120]
[341168563,1730507463070,-622.87,0.00052054,120]
[341168564,1730507463079,-622.87,0.00052054,120]
[341168565,1730507463088,-622.87,0.00052054,120]
[341168566,1730507463098,-622.87,0.00052054,120]
[341168567,1730507463107,-622.87,0.00052054,120]
[341168568,1730507463116,-622.87,0.00052054,120]
[341168569,1730507463126,-622.87,0.00052054,120]
[341168570,1730507463135,-622.87,0.00052054,120]
[341168571,1730507463230,-622.87,0.00052054,120]
[341168572,1730507463240,-622.87,0.00052054,120]
[341168573,1730507463249,-622.87,0.00052054,120]
[341168574,1730507463259,-622.87,0.00052054,120]
[341168575,1730507463268,-622.87,0.00052054,120]
[341168576,1730507463277,-622.87,0.00052054,120]
[341168577,1730507463287,-622.87,0.00052054,120]
[341168578,1730507463296,-518.41,0.00052054,120]
[341168579,1730507463306,-2000.0,0.00052055,60]
[341168580,1730507463315,-3000.0,0.000521,2]
[341168581,1730507463324,-999.0,0.00052273,120]
[341168582,1730507463333,-60000.0,0.000523,30]
[341168583,1730507463343,-1000.0,0.00052328,120]
[341168584,1730507463353,-679.72,0.00052328,7]
[341168585,1730507463363,-6346.79,0.00052328,120]
[341168586,1730507463372,-609.09621642,0.00052328,2]
[341168587,1730507463382,-697.18,0.00052328,120]
[341168588,1730507463391,-500.0,0.00052328,120]
[341168589,1730507463401,-622.87,0.00052328,120]
[341168590,1730507463410,-518.41,0.00052328,120]
[341168591,1730507463419,-2000.0,0.00052329,60]
[341168592,1730507463429,-15000.0,0.000525,120]
[341168593,1730507463441,-1000.0,0.00052602,120]
[341168594,1730507463451,-1000.0,0.00052602,120]
[341168595,1730507463460,-11800.64326291,0.00052602,120]
[341168596,1730507463469,-679.72,0.00052602,7]
[341168597,1730507463479,-6346.79,0.00052602,120]
[341168598,1730507463489,-697.18,0.00052602,120]
[341168599,1730507463499,-280.32,0.00052602,120]
[341168600,1730507463508,-622.87,0.00052602,120]
[341168601,1730507463518,-518.41,0.00052602,120]
[341168602,1730507463528,-2000.0,0.00052603,60]
[341168603,1730507463538,-99929.97000084,0.00052741,120]
[341168604,1730507463547,-800.0,0.00052748,60]
[341168605,1730507463556,-15000.0,0.0005275,120]
[341168606,1730507463566,-4183.82022647,0.0005279,120]
[341168607,1730507463575,-500.0,0.00052874,120]
[341168608,1730507463584,-1000.0,0.00052876,120]
[341168609,1730507463594,-679.8117429,0.00052876,7]
[341168610,1730507463604,-6347.01710705,0.00052876,120]
[341168611,1730507463614,-697.32,0.00052876,120]
[341168612,1730507463623,-622.96790392,0.00052876,120]
[341168613,1730507463634,-518.64811357,0.00052876,120]
[341168614,1730507463643,-2000.0,0.00052877,60]
[341168615,1730507463652,-8063.86539951,0.0005289,30]
[341168616,1730507463662,-2500.0,0.00052958,2]
[341168617,1730507463671,-999.0,0.00052958,120]
[341168618,1730507463681,-594.70429225,0.00052992,2]
[341168619,1730507463690,-150.0,0.00052992,2]
[341168620,1730507463699,-273576.16451652,0.00052995,7]
[341168621,1730507463708,-1899.64764595,0.00052995,7]
[341168622,1730507463718,-227335.19023152,0.00052997,7]
[341168623,1730507463727,-200000.0,0.00052999,120]
[341168624,1730507463736,-50000.0,0.00053,53]
[341168625,1730507463745,-571.76342082,0.00053,2]
[341168626,1730507463754,-157.94316524,0.00053,120]
[341168627,1730507463764,-389910.37486948,0.00053,120]
[341168628,1730507463773,-15000.0,0.00053,120]
[341168629,1730507463782,-12285.0,0.00053,120]
[341168630,1730507463792,-900.0,0.00053,54]
[341168631,1730507463801,-28508.19255245,0.00053,120]
[341168632,1730507463811,-297.35214613,0.00053,2]
[341168633,1730507463820,-4183.8202264,0.00053002,120]
[341168634,1730507463829,-195.79,0.00053125,120]
[341168635,1730507463839,-195.791,0.00053125,120]
[341168636,1730507463848,-195.791,0.00053125,120]
[341168637,1730507463857,-1000.0,0.0005315,120]
[341168638,1730507463866,-1000.0,0.0005315,120]
[341168639,1730507463875,-2000.0,0.00053151,60]
[341168640,1730507463885,-29450.4530432,0.000532,120]
[341168641,1730507463894,-4183.8202264,0.00053214,120]
[341168642,1730507463903,-443.20653007,0.0005331,2]
[341168643,1730507463912,-1000.0,0.00053424,120]
[341168644,1730507463922,-2000.0,0.00053425,60]
[341168645,1730507463932,-4183.8202264,0.00053427,120]
[341168646,1730507463941,-15000.0,0.000535,120]
[341168647,1730507463950,-244875.79940499,0.000535,120]
[341168648,1730507463959,-56363.06939806,0.000535,45]
[341168649,1730507463968,-3043.69741398,0.00053533,7]
[341168650,1730507463977,-4183.8202264,0.00053639,120]
[341168651,1730507463987,-150.0,0.0005364,30]
[341168652,1730507463996,-999.0,0.00053643,120]
[341168653,1730507464005,-499.999999,0.00053689,120]
[341168654,1730507464014,-1000.0,0.00053698,120]
[341168655,1730507464023,-1000.0,0.00053698,120]
[341168656,1730507464034,-7573.91,0.0005377,90]
[341168657,1730507464044,-7573.91,0.0005377,90]
[341168658,1730507464054,-7573.91,0.0005377,90]
[341168659,1730507464063,-7573.91,0.0005377,90]
[341168660,1730507464073,-1000.0,0.000538,120]
[341168661,1730507464082,-39609.039921,0.000538,30]
[341168662,1730507464092,-39609.039921,0.000538,30]
[341168663,1730507464104,-46210.546574,0.000538,30]
[341168664,1730507464117,-4183.8202264,0.00053851,120]
[341168665,1730507464127,-297.35214612,0.00053851,2]
[341168666,1730507464136,-500000.0,0.000539,120]
[341168667,1730507464145,-500.0,0.000539,19]
[341168668,1730507464154,-971.71,0.00053933,2]
[341168669,1730507464165,-250.0,0.0005397,7]
[341168670,1730507464174,-889.0483581,0.00053972,120]
[341168671,1730507464184,-3707.01626,0.00053993,120]
[341168672,1730507464193,-1000.0,0.00053999,120]
[341168673,1730507464202,-50000.0,0.00054,54]
[341168674,1730507464211,-1000.0,0.00054,2]
[341168675,1730507464221,-400.0,0.00054,120]
[341168676,1730507464230,-180.14344475,0.00054,120]
[341168677,1730507464240,-300.0,0.00054,120]
[341168678,1730507464249,-15000.0,0.00054,120]
[341168679,1730507464258,-900.0,0.00054,55]
[341168680,1730507464268,-35423.72161708,0.00054,120]
[341168681,1730507464277,-6000.0,0.00054,120]
[341168682,1730507464287,-7573.91,0.00054044,90]
[341168683,1730507464297,-7573.91,0.00054044,90]
[341168684,1730507464306,-4183.8202264,0.00054063,120]
[341168685,1730507464316,-354.85,0.0005407,120]
[341168686,1730507464326,-150.0,0.00054074,2]
[341168687,1730507464335,-11800.64326291,0.00054102,120]
[341168688,1730507464344,-1000.0,0.00054246,120]
[341168689,1730507464356,-4183.8202264,0.00054276,120]
[341168690,1730507464365,-7573.91,0.00054317,90]
[341168691,1730507464375,-7573.91,0.00054317,90]
[341168692,1730507464384,-999.0,0.00054328,120]
[341168693,1730507464394,-151.0,0.00054461,11]
[341168694,1730507464403,-4183.8202264,0.00054488,120]
[341168695,1730507464412,-6436.01265,0.000545,120]
[341168696,1730507464422,-21513.63355796,0.000545,120]
[341168697,1730507464435,-581.303171,0.00054507,120]
[341168698,1730507464444,-7573.91,0.0005459,90]
[341168699,1730507464454,-7573.91,0.0005459,90]
[341168700,1730507464463,-2508.95432756,0.00054597,7]
[341168701,1730507464473,-2461.08448528,0.000547,30]
[341168702,1730507464482,-4183.8202264,0.000547,120]
[341168703,1730507464491,-269.20843985,0.000547,2]
[341168704,1730507464501,-619.17766298,0.000547,2]
[341168705,1730507464511,-24443.3440602,0.000547,2]
[341168706,1730507464520,-15000.0,0.0005475,120]
[341168707,1730507464530,-236.46553865,0.00054762,40]
[341168708,1730507464539,-2118.74281698,0.00054762,40]